[Event "44th Chess Olympiad Open 2022"]
[Site "Chennai"]
[Date "2022.08.09"]
[Round "11.4"]
[White "Shankland, Sam"]
[Black "Narayanan.S.L"]
[Result "1-0"]
[ECO "E36"]
[WhiteElo "2720"]
[BlackElo "2659"]
[Annotator "TA"]
[PlyCount "147"]
[EventDate "2022.07.29"]
[EventType "team-tourn"]
[EventCountry "IND"]
[SourceTitle "playchess.com"]
[Source "ChessBase"]
[SourceQuality "1"]
[WhiteTeam "United States"]
[BlackTeam "India"]
[WhiteTeamCountry "USA"]
[BlackTeamCountry "IND"]
[TimeControl "40/5400+30:1800+30"]

{[%evp 11,147,18,35,1,17,8,23,23,22,16,31,30,30,31,44,35,47,47,51,47,51,40,43,43,48,46,48,59,56,38,47,37,43,43,31,25,22,18,57,53,44,20,33,22,36,36,36,22,81,79,80,70,97,92,100,87,94,80,118,117,111,112,106,107,114,125,127,112,118,103,144,137,137,86,93,102,102,94,97,75,91,92,119,119,168,179,166,180,176,179,209,190,229,189,233,221,216,261,244,244,853,846,589,400,914,818,829,702,635,572,1105,791,3676,1067,29966,29967,5808,6386,29964,29969,29969,29971,29971,29973,29974,29970,29973,29974,29974,29975,29974,29976,29982,29976,29981,29982,29984,29985]} 1. d4 {[%emt 0:00:11]} Nf6 {[%emt 0:00:06]} 2. c4 {[%emt 0:00:04]} e6 {[%emt 0:00:05]} 3. Nc3 {[%emt 0:00:04]} Bb4 {[%emt 0:00:06]} 4. Qc2 {[%emt 0:00:06]} d5 {[%emt 0:00:13]} 5. a3 {[%emt 0:00:07]} Bxc3+ {[%emt 0:00:06]} 6. Qxc3 {[%emt 0:00:03]} b6 {[%emt 0:04:12] 6...0-0 is setting a new trend.} 7. Nf3 {[%emt 0:03:03] E36: Nimzo-Indian: Classical: 4...d5 5 a3.} dxc4 {[%emt 0:02:09]} 8. Qxc4 {[%emt 0:01:26]} Ba6 {[%emt 0:00:02]} 9. Qa4+ {[%emt 0:00:39] White has an edge.} Qd7 {[%emt 0:00:33]} 10. Qc2 {[%emt 0:00:11]} Qc6 {[%emt 0:09:18]} (10... h6 {is more complex.} 11. Rg1 Bb7 12. Ne5 Qxd4 13. Qxc7 O-O) 11. Qxc6+ {[%emt 0:04:43]} Nxc6 {[%emt 0:00:07][%cal Bb8c6,Bc6e7,Be7f5][%mdl 32]} 12. Bf4 {[%emt 0:03:52]} Nd5 {[%emt 0:21:33]} 13. Bg3 {[%emt 0:03:08]} Nce7 {[%emt 0:07:57]} 14. Rc1 {[%emt 0:09:21] [#]} Nf5 $146 {[%emt 0:01:26]} ({Predecessor:} 14... Rc8 15. e4 Bxf1 16. Kxf1 Nf6 17. Nd2 Nh5 18. Ke2 Nxg3+ 19. hxg3 f5 20. f3 O-O {½-½ (34) Vera Gonzalez Quevedo,R (2510)-Tiviakov,S (2680) Merida 2006}) 15. e3 {[%emt 0:03:39][%cal Be2e3,Be3e4][%mdl 32]} Bxf1 {[%emt 0:00:06]} 16. Kxf1 {[%emt 0:03:36]} Rc8 {[%emt 0:02:42]} 17. Ke2 {[%emt 0:07:35]} f6 {[%emt 0:07:13]} 18. e4 {[%emt 0:00:05]} Nxg3+ {[%emt 0:00:42]} 19. hxg3 {[%emt 0:00:02]} Ne7 {[%emt 0:00:07]} 20. g4 {[%emt 0:00:20]} O-O {[%emt 0:08:21]} 21. Rc2 {[%emt 0:05:45]} h6 {[%emt 0:00:00]} 22. Rhc1 {[%emt 0:01:09]} c6 {[%emt 0:00:45]} 23. b4 {[%emt 0:01:21]} Ra8 {[%emt 0:05:54]} 24. Rb1 {[%emt 0:05:42]} Rfc8 {[%emt 0:02:42]} 25. Nd2 {[%emt 0:01:12]} Rd8 {[%emt 0:00:00]} 26. Nb3 {[%emt 0:04:56]} Kf7 {[%emt 0:04:12]} 27. Rbc1 {[%emt 0:04:34]} Rd7 {[%emt 0:06:35]} 28. g3 {[%emt 0:00:40]} Rad8 {[%emt 0:00:57]} 29. Rc3 {[%emt 0:04:11]} e5 {[%emt 0:00:00]} (29... Rd6 $11) 30. dxe5 $16 {[%emt 0:05:02]} fxe5 {[%emt 0:00:00]} 31. R1c2 {[%emt 0:01:00]} Rd6 {[%emt 0:00:00]} 32. Nd2 {[%emt 0:04:21]} Re6 {[%emt 0:03:08]} 33. Nc4 {[%emt 0:02:09]} Rd4 {[%emt 0:01:18]} 34. f3 {[%emt 0:01:20]} Kf6 {[%emt 0:03:38]} 35. Rd3 {[%emt 0:03:04]} Ng6 {[%emt 0:03:30]} 36. Ne3 {[%emt 0:04:09]} (36. Rdd2 {feels hotter.} c5 37. bxc5 bxc5 38. Na5) 36... Rxd3 {[%emt 0:00:00]} 37. Kxd3 {[%emt 0:00:04][%mdl 4096] Endgame KRN-KRN} Rd6+ {[%emt 0:00:00]} 38. Ke2 $1 {[%emt 0:00:31]} Ne7 {[%emt 0:00:00]} 39. Nc4 {[%emt 0:01:04]} Rd4 {[%emt 0:00:42]} 40. Nb2 {[%emt 0:00:50]} g6 {[%emt 0:06:41]} 41. Ke3 {[%emt 0:32:46]} Rd8 {[%emt 0:05:03]} 42. Rh2 {[%emt 0:00:00]} (42. f4 $142) 42... Ng8 {[%emt 0:00:00]} 43. Nd3 {[%emt 0:00:00]} g5 {[%emt 0:02:20]} 44. Rc2 {[%emt 0:00:00]} Rd6 {[%emt 0:01:05]} 45. Ke2 {[%emt 0:00:00]} Ne7 {[%emt 0:00:47]} 46. Nb2 {[%emt 0:00:00]} Rd8 {[%emt 0:00:17]} 47. Nc4 {[%emt 0:00:00]} c5 {[%emt 0:03:22]} (47... Ke6 $16 48. Ne3 Kf7) 48. bxc5 $18 {[%emt 0:00:00]} Nc6 {[%emt 0:00:38] Threatens to win with ...Nd4+.} 49. Ke3 {[%emt 0:00:00]} bxc5 {[%emt 0:00:42]} 50. Nd2 {[%emt 0:00:00]} Na5 {[%emt 0:01:22]} 51. Rxc5 {[%emt 0:00:00]} Rxd2 {[%emt 0:00:06]} 52. Rxa5 {[%emt 0:00:00] KR-KR} Rb2 {[%emt 0:00:17]} 53. Ra6+ {[%emt 0:00:00]} ({Don't do} 53. Rxa7 $6 Rb3+ 54. Kf2 Rb2+ 55. Ke3 Rb3+ 56. Kf2 Rb2+ 57. Ke1 Rb1+ 58. Kf2 Rb2+ $16) 53... Ke7 {[%emt 0:00:04]} 54. Rxa7+ {[%emt 0:00:00]} Kd6 {[%emt 0:00:53]} 55. Ra6+ {[%emt 0:00:00]} Ke7 $2 {[%emt 0:00:26]} (55... Kc5 56. Ra5+ (56. Rxh6 Rb3+ 57. Ke2 Rb2+ 58. Ke3 Rb3+ 59. Ke2 Rb2+ 60. Ke3 $14) 56... Kc4 57. Rxe5 Rb3+ 58. Kf2 Rb2+ 59. Ke3 Rb3+ 60. Kf2 Rb2+ 61. Kg1 Kd4) 56. a4 {[%emt 0:02:43]} Rb3+ {[%emt 0:00:12]} 57. Ke2 {[%emt 0:00:04]} Rb2+ {[%emt 0:00:55]} (57... Ra3 $142 58. a5 Kf7) 58. Kd3 {[%emt 0:01:59]} Rb3+ {[%emt 0:00:05] [#]} 59. Kc4 $1 {[%emt 0:00:43]} Rxf3 {[%emt 0:00:04]} 60. a5 {[%emt 0:01:04]} Rxg3 {[%emt 0:00:11]} 61. Rxh6 {[%emt 0:01:00]} Kd7 {[%emt 0:02:06]} 62. Kd5 {[%emt 0:02:26]} (62. a6 $142 Kc7 63. Kc5) 62... Kc7 {[%emt 0:02:03]} 63. Rh7+ {[%emt 0:00:36]} Kb8 {[%emt 0:00:16]} 64. Kxe5 {[%emt 0:00:59] White threatens Kf6 and mate.} Rxg4 {[%emt 0:00:06]} 65. Rg7 {[%emt 0:00:15] White mates.} Rg1 {[%emt 0:03:00]} 66. Kf5 {[%emt 0:00:22]} Ra1 {[%emt 0:00:27]} 67. e5 {[%emt 0:01:17]} Kc8 {[%emt 0:01:33]} 68. Kxg5 {[%emt 0:02:02]} Rxa5 {[%emt 0:00:20] [#]} 69. Kf6 $1 {[%emt 0:00:03]} Ra1 {[%emt 0:00:33]} 70. e6 {[%emt 0:00:49]} Rf1+ {[%emt 0:00:16]} 71. Ke7 {[%emt 0:00:04]} Rh1 {[%emt 0:01:13]} 72. Rg2 {[%emt 0:00:47]} Rh7+ {[%emt 0:00:00]} 73. Kd6 {[%emt 0:00:18]} Rh8 {[%emt 0:00:00]} 74. Rc2+ {[%emt 0:00:12] Weighted Error Value: White=0.04 (flawless) /Black=0.12 (very precise)} 1-0

[Event "44th Chess Olympiad Open 2022"]
[Site "Chennai"]
[Date "2022.08.09"]
[Round "11.4"]
[White "Erigaisi Arjun"]
[Black "Dominguez Perez, Leinier"]
[Result "1-0"]
[ECO "E20"]
[WhiteElo "2689"]
[BlackElo "2754"]
[Annotator "TA"]
[PlyCount "97"]
[EventDate "2022.07.29"]
[EventType "team-tourn"]
[EventCountry "IND"]
[SourceTitle "playchess.com"]
[Source "ChessBase"]
[SourceQuality "1"]
[WhiteTeam "India"]
[BlackTeam "United States"]
[WhiteTeamCountry "IND"]
[BlackTeamCountry "USA"]
[TimeControl "40/5400+30:1800+30"]

{[%evp 10,97,8,22,7,10,12,15,1,4,23,11,28,35,24,25,21,0,4,0,18,22,24,0,57,62,61,64,69,47,58,56,70,63,79,85,141,160,155,84,97,101,104,102,125,101,154,150,167,138,179,163,185,176,190,185,183,153,289,289,289,267,339,317,381,384,383,373,389,389,398,404,382,344,406,385,1794,1838,1851,1743,1405,1750,1731,1536,12812,12813,12799,12797,5802,5730]} 1. d4 {[%emt 0:00:08]} Nf6 {[%emt 0:00:08]} 2. c4 {[%emt 0:00:06]} e6 {[%emt 0:00:05]} 3. Nc3 {[%emt 0:00:04]} Bb4 {[%emt 0:00:07]} 4. f3 {[%emt 0:00:23]} d5 {[%emt 0:00:19]} 5. a3 {[%emt 0:00:06]} Be7 {[%emt 0:00:10]} 6. e4 {[%emt 0:00:06]} dxe4 {[%emt 0:00:09] E20: Nimzo-Indian: 4 g3 and 4 f3.} 7. fxe4 {[%emt 0:00:04]} c5 {[%emt 0:00:14]} 8. d5 {[%emt 0:00:05] Threatens to win with e5.} exd5 {[%emt 0:00:28] The position is equal.} 9. exd5 {[%emt 0:00:05]} O-O {[%emt 0:00:10]} 10. Be2 $1 {[%emt 0:00:03] The main line 10.Be2 scores better than 10.Nf3.} a6 {[%emt 0:00:39]} 11. Nf3 {[%emt 0:00:46]} Bd6 {[%emt 0:00:22]} 12. O-O {[%emt 0:01:53]} h6 {[%emt 0:08:10] Against Bg5} 13. h3 {[%emt 0:02:08] [#]} Re8 $146 {[%emt 0:02:24]} ({Predecessor:} 13... Bf5 14. Nh4 Bh7 15. Bd3 Bxd3 16. Qxd3 Nbd7 17. Nf5 Ne5 18. Qg3 Nh5 19. Qf2 Nd3 20. Qf3 Nxc1 21. Qxh5 Nb3 22. Ne4 Nxa1 23. Nxh6+ gxh6 24. Nf6+ Kg7 25. Qg4+ {1-0 (25) Sabuk,P (2398)-Bartos,J (2156) Brno 2021}) 14. Bd3 {[%emt 0:02:19]} Nbd7 {[%emt 0:11:18]} (14... b5 $5) 15. a4 {[%emt 0:39:03]} Nf8 {[%emt 0:10:09]} 16. b3 {[%emt 0:06:28]} Bc7 {[%emt 0:06:50]} ({Black should try} 16... Ng6 $11) 17. Re1 {[%emt 0:06:26]} Rxe1+ {[%emt 0:20:24]} 18. Qxe1 {[%emt 0:00:00]} (18. Nxe1 Be5 19. Qc2 Bd4+ 20. Kh1 {[#]} Ng4 $1 $15 {[%mdl 512]}) 18... Qd6 {[%emt 0:00:59]} 19. Ne2 {[%emt 0:00:00]} Qe7 {[%emt 0:02:32]} 20. Bf4 {[%emt 0:00:00]} Bxf4 {[%emt 0:01:08]} 21. Nxf4 {[%emt 0:00:00]} Qxe1+ {[%emt 0:00:23]} 22. Rxe1 {[%emt 0:00:00]} Bd7 {[%emt 0:17:44]} ({Black should play} 22... a5) 23. a5 $16 {[%emt 0:09:12] White is more active.} Re8 {[%emt 0:00:00]} 24. Rd1 {[%emt 0:03:22]} (24. Kf2 $142) 24... Bc8 {[%emt 0:00:00]} 25. Ne2 {[%emt 0:02:51]} N8d7 {[%emt 0:00:48]} 26. Nc3 {[%emt 0:00:25]} Kf8 {[%emt 0:04:12]} 27. Kf2 {[%emt 0:04:14]} Ke7 {[%emt 0:03:47]} (27... Ne5 $142) 28. Re1+ {[%emt 0:03:16]} Kd8 {[%emt 0:00:00]} 29. Na4 {[%emt 0:06:13]} Rxe1 {[%emt 0:00:00]} 30. Nxe1 {[%emt 0:02:46]} ({Don't do} 30. Kxe1 $6 Ke7 $16) 30... g6 {[%emt 0:00:00]} 31. Ke3 {[%emt 0:02:06]} Ke7 {[%emt 0:00:00]} 32. Bc2 {[%emt 0:00:00]} Kd6 {[%emt 0:00:00]} 33. Nd3 {[%emt 0:00:00]} Ng8 {[%emt 0:02:47]} (33... Nh5 $16 34. b4 cxb4) 34. b4 $18 {[%emt 0:00:00]} cxb4 {[%emt 0:00:19]} 35. Kd4 {[%emt 0:00:00]} ({Don't play} 35. Nxb4 $6 Ngf6 36. Kd4 Kc7 $16) 35... Ngf6 {[%emt 0:00:00]} 36. Nxb4 {[%emt 0:00:00]} Nh5 {[%emt 0:00:00]} 37. c5+ {[%emt 0:00:00]} Kc7 {[%emt 0:03:24]} 38. Bb3 {[%emt 0:03:58]} f6 {[%emt 0:00:00]} 39. d6+ {[%emt 0:00:00]} Kd8 {[%emt 0:00:00]} 40. c6 {[%emt 0:00:23]} bxc6 {[%emt 0:00:00]} 41. Nxc6+ {[%emt 0:30:04]} Ke8 {[%emt 0:21:52]} 42. Nb6 {[%emt 0:03:34]} Nxb6 {[%emt 0:03:09]} (42... Bb7) 43. axb6 {[%emt 0:01:08][%mdl 4096] Endgame KBN-KBN. White is clearly winning.} Kd7 {[%emt 0:02:29]} 44. Ne7 {[%emt 0:05:39]} ({Not} 44. Na5 Kxd6 45. Bd5 Nf4 $18) 44... Bb7 {[%emt 0:00:00]} 45. Kc5 {[%emt 0:01:08] [#] Black must now prevent Ba4+.} Nf4 {[%emt 0:06:09]} 46. Ba4+ {[%emt 0:00:00]} Kd8 {[%emt 0:04:06]} 47. Bc6 {[%emt 0:00:43]} Ne6+ {[%emt 0:00:00]} 48. Kd5 {[%emt 0:00:19]} Nf4+ {[%emt 0:01:08]} 49. Ke4 {[%emt 0:01:05] Weighted Error Value: White=0.07 (flawless) /Black=0.20 (precise)} 1-0

[Event "44th Chess Olympiad Open 2022"]
[Site "Chennai"]
[Date "2022.08.09"]
[Round "11.5"]
[White "McShane, Luke J"]
[Black "Hamitevici, Vladimir"]
[Result "0-1"]
[ECO "B07"]
[WhiteElo "2649"]
[BlackElo "2473"]
[Annotator "TA"]
[PlyCount "118"]
[EventDate "2022.07.29"]
[EventType "team-tourn"]
[EventCountry "IND"]
[SourceTitle "playchess.com"]
[Source "ChessBase"]
[SourceQuality "1"]
[WhiteTeam "England"]
[BlackTeam "Moldova"]
[WhiteTeamCountry "ENG"]
[BlackTeamCountry "MDA"]
[TimeControl "40/5400+30:1800+30"]

{[%evp 19,117,26,62,55,64,54,68,66,92,13,21,0,0,0,0,-68,-27,-65,40,28,19,0,29,0,31,37,47,37,50,43,42,10,73,74,80,65,144,139,133,135,194,216,291,208,216,183,204,181,188,44,188,191,194,104,97,18,14,0,0,0,0,0,0,-984,-984,-29973,-29974,-29974,-29975,-29968,-29967,-29990,-29991,-29991,-29992,-29992,-262,-29949,-12848,-8196,-9497,-7523,-6275,-4582,-3785,-29990,-29991,-29991,-29992,-29992,-29993,-29993,-29994,-29996,-29997,-29997,-29998,-29998,-29999,-29999]} 1. e4 {[%emt 0:00:11]} d6 {[%emt 0:00:48]} 2. d4 {[%emt 0:00:28]} Nf6 {[%emt 0:00:27]} 3. Nc3 {[%emt 0:00:07]} g6 {[%emt 0:00:46]} 4. Be3 {[%emt 0:04:01]} c6 {[%emt 0:05:32]} 5. Nf3 {[%emt 0:03:14]} Bg7 {[%emt 0:05:20]} 6. Qd2 {[%emt 0:06:29]} b5 {[%emt 0:07:30]} 7. Bd3 {[%emt 0:02:07]} Nbd7 {[%emt 0:06:16]} 8. O-O {[%emt 0:24:17]} O-O {[%emt 0:05:42]} 9. h3 {[%emt 0:03:56]} e5 {[%emt 0:02:12]} 10. dxe5 {[%emt 0:01:44]} dxe5 {[%emt 0:00:51]} 11. a4 {[%emt 0:01:29] B07: Pirc Defence: Miscellaneous Systems.} b4 {[%emt 0:00:17]} 12. Ne2 {[%emt 0:00:06]} c5 {[%emt 0:10:49] is the legacy move (12...a5).} 13. Ng3 {[%emt 0:00:08] [#] White is slightly better.} a5 $146 {[%emt 0:09:51]} ({Predecessor:} 13... Qc7 14. Rfd1 Bb7 15. Bb5 Rad8 16. Qd6 Qc8 17. a5 Rfe8 18. Qd3 a6 19. Bc4 Nb6 {1-0 (46) Kveinys,A (2526)-Sulskis,S (2521) Liepaja 2017}) 14. Rad1 {[%emt 0:05:40]} (14. Rfd1 $16) 14... Qc7 $11 {[%emt 0:04:33]} 15. Bb5 {[%emt 0:01:07]} Ba6 $1 {[%emt 0:02:22]} 16. Bxa6 {[%emt 0:05:29]} ({Of course not} 16. Bxd7 Bxf1 17. Qd6 (17. Nxf1 Rfd8 $17) 17... Qxd6 18. Rxd6 Rfd8 19. Kxf1 Nxd7 $17) 16... Rxa6 {[%emt 0:02:05]} 17. Bh6 {[%emt 0:01:01]} (17. c4 $11) 17... Re8 {[%emt 0:04:58]} 18. Qg5 {[%emt 0:05:41]} Nf8 {[%emt 0:09:07]} (18... Bxh6 $15 19. Qxh6 c4) 19. Bxg7 $14 {[%emt 0:00:41]} Kxg7 {[%emt 0:00:06]} 20. Rd2 {[%emt 0:00:45]} Ng8 {[%emt 0:02:34]} 21. Nf5+ {[%emt 0:08:38]} Kh8 {[%emt 0:00:13]} 22. Ne3 {[%emt 0:00:05]} f6 {[%emt 0:04:38]} 23. Qh4 {[%emt 0:01:19]} Qc6 {[%emt 0:04:18]} 24. Nd5 {[%emt 0:04:27]} Ra7 {[%emt 0:02:09]} 25. b3 {[%emt 0:06:04]} Rf7 {[%emt 0:00:10]} (25... Kg7 $11) 26. Ne3 $16 {[%emt 0:00:05]} Ne6 {[%emt 0:03:46]} 27. Nc4 {[%emt 0:00:16]} Nd4 {[%emt 0:02:59]} (27... Ra7 $14) 28. Nxa5 {[%emt 0:01:51]} Qc7 {[%emt 0:00:34]} 29. Nc4 {[%emt 0:00:15]} f5 {[%emt 0:00:34]} (29... Rfe7 $16 30. Ra1 Re6) 30. Nxd4 $1 $18 {[%emt 0:09:48]} cxd4 {[%emt 0:00:06]} 31. exf5 {[%emt 0:00:24]} Rxf5 {[%emt 0:01:17]} 32. Re1 {[%emt 0:01:00] Black must now prevent Rxd4.} Nf6 {[%emt 0:00:08]} 33. f3 {[%emt 0:01:01]} Qc5 {[%emt 0:03:02]} 34. Kh1 {[%emt 0:01:14]} (34. Qf2 $18) 34... g5 {[%emt 0:00:37]} (34... e4 $1 $14) 35. Qg3 $1 {[%emt 0:00:50]} h5 {[%emt 0:00:43]} 36. h4 {[%emt 0:01:58]} ({Better is} 36. a5 $18) 36... g4 $16 {[%emt 0:00:19]} 37. Rde2 {[%emt 0:00:21]} ({White should play} 37. Rf2 $1 $16 {Threatens to win with fxg4.} Qc7 38. a5) 37... gxf3 $11 {[%emt 0:00:22]} 38. gxf3 {[%emt 0:00:28]} ({But not} 38. Rxe5 $2 Rexe5 39. Nxe5 fxg2+ 40. Kh2 g1=R 41. Rxg1 (41. Kxg1 $2 {too greedy.} d3+ 42. Kg2 d2 $19) 41... Qxe5 $19) 38... Rg8 {[%emt 0:00:05] Inhibits Qg6.} 39. Qh3 {[%emt 0:00:29]} e4 $1 $36 {[%emt 0:00:56][%mdl 2048] Black is more active.} 40. fxe4 {[%emt 0:00:37]} Rf4 {[%emt 0:00:10] Hoping for ...Rgg4.} 41. Rf1 $2 {[%emt 0:13:21][%mdl 8192] Black continues to play with concentration.} (41. Qh2 $11 Rgg4 42. Rf2 Rxf2 43. Qxf2 Nxe4 44. Rxe4 Rxe4 45. Qf6+ Kh7 46. Qf7+ Kh8 47. Qf6+ Kh7 48. Qf7+ Kh8 49. Qf6+) 41... d3 $1 $19 {[%emt 0:10:09]} 42. Re3 {[%emt 0:15:46] [#]} dxc2 $1 {[%emt 0:01:32]} 43. Rxf4 {[%emt 0:01:16]} c1=Q+ {[%emt 0:00:14]} 44. Rf1 {[%emt 0:00:03] [#]} Qc2 $1 {[%emt 0:04:42]} 45. Rxf6 {[%emt 0:00:21] [#]} (45. Qf3 Ng4) 45... Qxe4+ $3 {[%emt 0:00:10][%mdl 512]} 46. Rff3 {[%emt 0:01:46]} Qcd4 {[%emt 0:00:35]} 47. Qf1 {[%emt 0:01:04]} Qc2 $2 {[%emt 0:05:47]} (47... Qxh4+ {mates} 48. Rh3 Qd5+ 49. Kh2 Qf4+ $3 {[%mdl 512]} 50. Reg3 Rxg3 $1 51. Rxg3 Qxf1 52. Rg1 Qf2+ 53. Kh3 Qxg1 54. Kh4 Qh2#) 48. Ne5 $2 {[%emt 0:00:27] [#]} (48. Rg3 $19 Qxh4+ 49. Rh3) 48... Qdb2 $1 {[%emt 0:00:44][%csl Gb2][%cal Rc2h2]} 49. Nf7+ {[%emt 0:00:31]} Kh7 {[%emt 0:00:10][%csl Gb2][%cal Rc2h2]} 50. Ng5+ {[%emt 0:00:31] [#]} Rxg5 $1 {[%emt 0:00:11][%csl Gb2][%cal Rc2h2][%mdl 512]} 51. Rf7+ {[%emt 0:00:31]} (51. Re7+ Rg7) 51... Rg7 {[%emt 0:00:42][%csl Gb2][%cal Rc2h2]} 52. Re2 {[%emt 0:00:16] Inhibits Qh2+.} Qc6+ {[%emt 0:01:31] Black mates.} 53. Kh2 {[%emt 0:00:16]} Qd6+ {[%emt 0:00:32]} 54. Kh1 {[%emt 0:00:15]} Qd5+ {[%emt 0:01:13]} 55. Rf3 {[%emt 0:00:09]} Qf6 {[%emt 0:00:34]} 56. Ref2 {[%emt 0:00:59]} Qxh4+ {[%emt 0:01:41]} 57. Rh2 {[%emt 0:00:06] [#]} Qxf3+ $3 {[%emt 0:00:11][%mdl 512]} 58. Qxf3 {[%emt 0:00:05]} Qe1+ {[%emt 0:00:05]} 59. Qf1 {[%emt 0:00:04]} Qxf1# {[%emt 0:00:04] Weighted Error Value: White=0.73/Black=0.34} 0-1

[Event "44th Chess Olympiad Open 2022"]
[Site "Chennai"]
[Date "2022.08.09"]
[Round "11.5"]
[White "Haria, Ravi"]
[Black "Ceres, Dragos"]
[Result "1/2-1/2"]
[ECO "C02"]
[WhiteElo "2505"]
[BlackElo "2378"]
[Annotator "RC"]
[PlyCount "62"]
[EventDate "2022.07.29"]
[EventType "team-tourn"]
[EventCountry "IND"]
[SourceTitle "playchess.com"]
[Source "ChessBase"]
[SourceQuality "1"]
[WhiteTeam "England"]
[BlackTeam "Moldova"]
[WhiteTeamCountry "ENG"]
[BlackTeamCountry "MDA"]
[TimeControl "40/5400+30:1800+30"]

1. e4 {[%emt 0:00:07]} e6 {[%emt 0:00:06]} 2. d4 {[%emt 0:00:14]} d5 {[%emt 0:00:06]} 3. e5 {[%emt 0:00:44]} c5 {[%emt 0:00:08]} 4. c3 {[%emt 0:00:04]} Nc6 {[%emt 0:00:06]} 5. Nf3 {[%emt 0:00:16]} Qb6 {[%emt 0:00:07]} 6. a3 {[%emt 0:00:07]} Bd7 {[%emt 0:01:06]} 7. b4 {[%emt 0:05:37]} cxd4 {[%emt 0:00:11]} 8. cxd4 {[%emt 0:00:58]} Rc8 {[%emt 0:00:54]} 9. Be3 {[%emt 0:04:21]} Nh6 {[%emt 0:03:41]} 10. Bd3 {[%emt 0:03:19]} Nf5 {[%emt 0:06:02]} 11. O-O {[%emt 0:00:40]} Be7 {[%emt 0:12:02]} 12. Nbd2 {[%emt 0:20:02]} Nd8 {[%emt 0:11:12]} 13. Nb3 {[%emt 0:16:08]} Ba4 {[%emt 0:02:14]} 14. Bxf5 {[%emt 0:01:43]} exf5 {[%emt 0:00:10]} 15. Qb1 {[%emt 0:00:10]} Qg6 {[%emt 0:04:51]} 16. Nc5 {[%emt 0:09:37]} Bb5 {[%emt 0:03:44]} 17. Re1 {[%emt 0:00:09]} b6 {[%emt 0:00:37]} 18. a4 {[%emt 0:01:37]} Bc4 {[%emt 0:03:06]} 19. Nd3 {[%emt 0:00:17]} Ne6 {[%emt 0:00:15]} 20. Nf4 {[%emt 0:02:50]} Nxf4 {[%emt 0:00:11]} 21. Bxf4 {[%emt 0:00:04]} Qe6 {[%emt 0:00:50]} 22. Bg5 {[%emt 0:03:33]} Bf8 {[%emt 0:01:15]} 23. b5 {[%emt 0:01:07]} h6 {[%emt 0:22:39]} 24. Bd2 {[%emt 0:11:35]} Be7 {[%emt 0:00:00]} 25. Bb4 {[%emt 0:06:26]} Bd3 {[%emt 0:02:23]} 26. Qxd3 {[%emt 0:00:00]} Bxb4 {[%emt 0:00:00]} 27. Rec1 {[%emt 0:00:00]} O-O {[%emt 0:00:00]} 28. Nh4 {[%emt 0:03:39]} g6 {[%emt 0:00:00]} 29. g3 {[%emt 0:00:27]} Rc4 {[%emt 0:03:20]} 30. Ng2 {[%emt 0:00:57]} Rfc8 {[%emt 0:00:00]} 31. Qd1 {[%emt 0:00:20]} Bc3 {[%emt 0:00:00]} 1/2-1/2